bitfinex/quotes_BTCUSD_20210101
["timestamp","ask_amount","ask_price","bid_price","bid_amount"]
[1609470435935,0.71196921,29281.0,29278.0,0.25801393]
[1609470436237,0.57165379,29281.0,29278.0,0.25801393]
[1609470437035,0.57165379,29281.0,29280.0,0.5119]
[1609470438658,0.57165379,29281.0,29280.0,0.51984088]
[1609470439062,1.42165379,29281.0,29280.0,0.50584088]
[1609470439266,4.52165379,29281.0,29280.0,0.50584088]
[1609470439466,4.52165379,29281.0,29278.0,0.24715081]
[1609470439664,4.69313379,29281.0,29275.0,0.6825]
[1609470439867,0.00619903,29277.0,29273.0,0.30575735]
[1609470440265,0.00619251,29274.0,29273.0,0.30575735]
[1609470440464,1.60130251,29274.0,29273.0,0.30575735]
[1609470441163,1.59511,29274.0,29273.0,0.30575735]
[1609470441360,2.49511,29274.0,29273.0,0.30575735]
[1609470441656,1.60130394,29274.0,29273.0,0.30575735]
[1609470441855,1.59511,29274.0,29273.0,0.30575735]
[1609470442359,2.34511,29274.0,29273.0,0.30575735]
[1609470442756,1.59511,29274.0,29273.0,0.30575735]
[1609470443259,0.19511,29274.0,29273.0,0.30575735]
[1609470443475,0.76556881,29276.0,29273.0,0.31662047]
[1609470443476,0.0828688,29276.0,29273.0,0.31662047]
[1609470443674,0.00619768,29274.0,29273.0,0.31662047]
[1609470443878,0.00620099,29275.0,29273.0,0.30575735]
[1609470444274,0.00619998,29274.0,29273.0,0.30575735]
[1609470444475,0.00619998,29274.0,29268.0,0.0098]
[1609470444679,0.24637998,29274.0,29268.0,0.0098]
[1609470444877,0.00619924,29273.0,29268.0,0.0098]
[1609470445578,0.00619872,29272.0,29268.0,0.0098]
[1609470447215,0.00640752,29272.0,29268.0,0.0098]
[1609470447377,0.13672502,29273.0,29268.0,0.0098]
[1609470447674,0.00021209,29272.0,29268.0,0.0098]
[1609470447873,0.00641283,29272.0,29268.0,0.0098]
[1609470448073,0.00620074,29272.0,29268.0,0.0098]
[1609470448279,0.00620336,29273.0,29268.0,0.0098]
[1609470450101,0.0103385,29272.0,29268.0,0.0098]
[1609470450297,0.00413505,29271.0,29268.0,0.0098]
[1609470451503,0.00554642,29272.0,29268.0,0.0098]
[1609470452101,0.00533815,29272.0,29268.0,0.0098]
[1609470452300,0.01077519,29271.0,29268.0,0.0098]
[1609470452708,0.01077519,29271.0,29269.0,0.19]
[1609470452904,0.01077519,29271.0,29268.0,0.0098]
[1609470453106,0.01077519,29271.0,29268.0,0.01774386]
[1609470453811,0.01077519,29271.0,29269.0,0.01086312]
[1609470454011,0.01077519,29271.0,29268.0,0.01774386]
[1609470458889,0.01077519,29271.0,29269.0,0.185]
[1609470459689,0.01077519,29271.0,29269.0,1.185]
[1609470462921,0.50798346,29275.0,29269.0,1.185]
[1609470463522,0.06209961,29274.0,29269.0,1.185]
[1609470463722,0.06209961,29274.0,29270.0,0.18]
[1609470464423,0.06209961,29274.0,29270.0,0.18794321]
[1609470464625,0.06209961,29274.0,29273.0,1.0]
[1609470469868,0.06209961,29274.0,29273.0,1.00794272]
[1609470472926,0.03709961,29274.0,29273.0,1.00794272]
[1609470475732,0.22629961,29274.0,29273.0,1.00794272]
[1609470479052,0.31543649,29274.0,29273.0,1.00794272]
[1609470480352,0.22629961,29274.0,29273.0,1.00794272]
[1609470480753,0.31543649,29274.0,29273.0,1.00794272]
[1609470481255,0.22629961,29274.0,29273.0,1.00794272]
[1609470482758,0.22629961,29274.0,29273.0,1.18794272]
[1609470484581,0.03209961,29274.0,29273.0,1.18794272]
[1609470487618,0.02709961,29274.0,29273.0,1.00794272]
[1609470488117,0.02209961,29274.0,29273.0,1.00794272]
[1609470490550,0.02209961,29274.0,29273.0,1.18794272]
[1609470495782,0.02209961,29274.0,29273.0,1.00794272]
[1609470496585,0.02209961,29274.0,29273.0,0.99494272]
[1609470498305,0.0357486,29274.0,29273.0,0.99494272]
[1609470498505,0.2224486,29274.0,29273.0,0.99494272]
[1609470501411,0.31158548,29274.0,29273.0,0.99494272]
[1609470502959,0.2224486,29274.0,29273.0,0.99494272]
[1609470503258,0.31158548,29274.0,29273.0,0.99494272]
[1609470503455,0.31158548,29274.0,29273.0,1.16994272]
[1609470504296,0.2224486,29274.0,29273.0,1.16994272]
[1609470505496,0.2224486,29274.0,29273.0,0.99494272]
[1609470509525,0.31158548,29274.0,29273.0,0.99494272]
[1609470509729,0.71087309,29274.0,29273.0,0.99494272]
[1609470510234,5.39606028,29273.0,29268.0,0.0098]
[1609470510535,0.44119782,29271.0,29268.0,0.00867251]
[1609470510728,4.39119782,29269.0,29268.0,0.00867251]
[1609470511028,4.79048543,29269.0,29266.0,1.58206646]
[1609470511236,0.44119782,29268.0,29256.0,0.09815309]
[1609470511439,0.84976025,29267.0,29256.0,0.09815309]
[1609470511634,0.45047264,29266.0,29256.0,0.09815309]
[1609470511835,0.34928761,29265.0,29256.0,0.09815309]
[1609470512035,0.00345614,29262.0,29256.0,0.09815309]
[1609470512236,0.14449615,29261.0,29256.0,0.09815309]
[1609470512436,3.95,29259.0,29250.0,0.00040538]
[1609470512635,0.79972911,29258.0,29247.0,0.00040538]
[1609470512837,0.79972911,29258.0,29246.0,0.00020538]
[1609470512838,1.0,29256.0,29246.0,0.00020538]
[1609470513091,0.79199629,29255.0,29245.0,0.00040538]
[1609470513280,0.79199629,29255.0,29245.0,0.00020538]
[1609470513487,0.00206104,29249.0,29245.0,0.00020538]
[1609470513683,0.22686104,29249.0,29245.0,0.00020538]
[1609470513883,0.51250001,29248.0,29245.0,0.00020538]
[1609470514082,0.51250001,29248.0,29242.0,0.0008]
[1609470514083,0.51250001,29248.0,29243.0,0.00040538]
[1609470514681,0.95675255,29248.0,29243.0,0.00040538]
[1609470514884,0.51250001,29248.0,29243.0,0.00040538]
[1609470516281,0.51250001,29248.0,29244.0,0.0004]
[1609470516728,0.50750001,29248.0,29244.0,0.0004]
[1609470517724,0.50750001,29248.0,29240.0,0.0004]
[1609470517927,1.95,29247.0,29237.0,5.38e-06]
[1609470518224,1.95,29247.0,29239.0,0.01086312]
[1609470518624,1.95,29247.0,29237.0,5.38e-06]
[1609470519026,1.95,29247.0,29238.0,0.01086312]
[1609470519228,1.95,29247.0,29237.0,5.38e-06]
[1609470519425,1.95,29247.0,29237.0,0.95258353]
[1609470519626,1.2,29248.0,29238.0,0.01086312]
[1609470520830,1.0,29247.0,29236.0,0.95257815]
[1609470521033,0.51260001,29242.0,29234.0,1.13934536]
[1609470521232,0.72825001,29242.0,29235.0,0.94757815]
[1609470521431,0.72825001,29242.0,29235.0,0.94257815]
[1609470521827,0.72825001,29242.0,29238.0,0.25291826]
[1609470522233,0.72825001,29242.0,29239.0,0.94257815]
[1609470522455,0.21565,29242.0,29239.0,0.94257815]
[1609470522655,0.84239765,29247.0,29245.0,0.26633152]
[1609470523755,0.85648912,29247.0,29245.0,0.26633152]
[1609470526256,1.0,29246.0,29240.0,0.36223]
[1609470526460,1.0,29246.0,29240.0,1.30480815]
[1609470526653,1.0,29246.0,29241.0,0.26]
[1609470526859,1.0,29246.0,29242.0,0.36223]
[1609470527057,1.0,29246.0,29242.0,1.30480815]
[1609470527263,1.0,29246.0,29242.0,1.53480815]
[1609470527458,1.0,29246.0,29242.0,0.59223]
[1609470527662,1.0,29246.0,29244.0,0.19010556]
[1609470527860,1.0,29246.0,29244.0,1.13056094]
[1609470528084,1.0,29246.0,29245.0,0.94257815]
[1609470528580,1.0,29246.0,29244.0,0.18798279]
[1609470528780,1.0,29246.0,29244.0,1.13056094]
[1609470528979,1.0,29246.0,29245.0,0.915]
[1609470529579,1.0,29246.0,29245.0,1.27723]
[1609470529779,1.0,29246.0,29245.0,0.165]
[1609470529979,1.0,29246.0,29245.0,0.36223]
[1609470530781,1.0,29246.0,29244.0,0.18798279]
[1609470531384,1.0,29246.0,29245.0,0.36223]
[1609470533222,0.84239765,29247.0,29245.0,0.36223]
[1609470533426,0.84239765,29247.0,29246.0,0.96223]
[1609470534249,0.84239765,29247.0,29246.0,2.21223]
[1609470534451,0.85648186,29247.0,29246.0,2.24569812]
[1609470534654,0.85648186,29247.0,29246.0,2.63069812]
[1609470534852,0.85648186,29247.0,29246.0,1.38069812]
[1609470535350,0.85648186,29247.0,29246.0,1.34723]
[1609470535550,0.85648186,29247.0,29246.0,0.36223]
[1609470536251,0.85648186,29247.0,29245.0,0.03346812]
[1609470536653,0.85648186,29247.0,29244.0,0.22145091]
[1609470537057,0.85648186,29247.0,29245.0,0.14]
[1609470537250,0.85648186,29247.0,29244.0,0.18798279]
[1609470537482,0.85648186,29247.0,29245.0,0.03346812]
[1609470537680,0.85648186,29247.0,29244.0,0.22145091]
[1609470538684,0.85648186,29247.0,29244.0,0.18798279]
[1609470538881,0.85648186,29247.0,29245.0,0.16846812]
[1609470539081,0.85648186,29247.0,29244.0,0.22145091]
[1609470539486,0.85648186,29247.0,29245.0,0.03346812]
[1609470539879,0.85648186,29247.0,29244.0,0.18798279]
[1609470541985,0.85648186,29247.0,29245.0,0.1]
[1609470542190,1.85648186,29247.0,29246.0,2.19257815]
[1609470542389,1.85648186,29247.0,29246.0,2.73980815]
[1609470542589,0.85648186,29247.0,29246.0,2.77327627]
[1609470542784,0.85148186,29247.0,29246.0,1.52327627]
[1609470543737,0.58709394,29247.0,29246.0,5.53557627]
[1609470543938,0.00207242,29249.0,29247.0,0.94257815]
[1609470544144,2.42e-06,29249.0,29248.0,4.81223]
[1609470544339,0.71767179,29255.0,29249.0,0.94257815]
[1609470544543,0.06886695,29254.0,29253.0,4.51223]
[1609470544846,0.0718487,29255.0,29254.0,4.31223]
[1609470545040,0.0718487,29255.0,29254.0,6.17480815]
[1609470545235,0.0718487,29255.0,29254.0,6.20827627]
[1609470545445,0.01795115,29255.0,29254.0,6.89107627]
[1609470545746,0.5121,29266.0,29260.0,0.33798838]
[1609470545747,0.08308696,29263.0,29260.0,0.33798838]
[1609470545939,0.08308696,29263.0,29261.0,0.3]
[1609470546237,0.08308696,29263.0,29262.0,0.16]
[1609470546903,0.08306433,29264.0,29262.0,0.16]
[1609470547302,0.06904479,29263.0,29262.0,0.16]
[1609470547498,0.06904479,29263.0,29262.0,0.155]
[1609470548106,0.08304346,29265.0,29262.0,0.155]
[1609470548304,0.08304346,29265.0,29261.0,0.1]
[1609470548903,0.08304346,29265.0,29264.0,0.17111398]
[1609470550306,0.15183471,29266.0,29264.0,0.17111398]
[1609470550505,0.06880471,29265.0,29264.0,0.17111398]
[1609470550812,0.08301527,29266.0,29264.0,0.27111398]
[1609470551008,0.08300922,29267.0,29264.0,0.17111398]
[1609470551608,0.08300922,29267.0,29261.0,0.215]
[1609470551808,0.08300922,29267.0,29262.0,0.265]
[1609470552008,0.08300922,29267.0,29263.0,0.1]
[1609470553223,0.08300922,29267.0,29266.0,0.30623684]
[1609470553926,0.08297902,29268.0,29266.0,0.30623684]
[1609470554323,0.08297902,29268.0,29267.0,0.1]
[1609470554527,0.08297902,29268.0,29266.0,0.30623684]
[1609470554929,0.0829687,29269.0,29266.0,0.30623684]
[1609470555427,0.08295793,29270.0,29266.0,0.30623684]
[1609470555829,0.05742185,29269.0,29266.0,0.29799849]
[1609470556328,0.05742185,29269.0,29264.0,0.1]
[1609470556533,0.06844107,29268.0,29263.0,0.001]
[1609470556830,0.14995335,29267.0,29263.0,0.001]
[1609470557029,0.05742185,29266.0,29263.0,0.001]
[1609470557540,0.28513483,29263.0,29260.0,0.62180302]
[1609470557734,0.08513483,29263.0,29261.0,0.70723]
[1609470557928,0.08513483,29263.0,29261.0,0.74069812]
[1609470558154,0.08513483,29263.0,29261.0,0.70723]
[1609470558552,0.5121,29268.0,29261.0,0.345]
[1609470558753,0.81813027,29268.0,29261.0,0.345]
[1609470559152,0.0051078,29267.0,29262.0,0.22]
[1609470559352,0.00401729,29267.0,29260.0,1.30480815]
[1609470559555,0.00292981,29267.0,29260.0,0.3611527]
[1609470559752,0.00292981,29267.0,29261.0,0.32]
[1609470559952,0.01508999,29267.0,29261.0,0.32]
[1609470560850,0.01508999,29267.0,29261.0,0.318]
[1609470561052,0.01508999,29267.0,29262.0,0.215]
[1609470561251,0.01508999,29267.0,29262.0,1.0]
[1609470561652,0.1,29266.0,29262.0,1.0]
[1609470561900,0.15742185,29266.0,29262.0,1.0]
[1609470562099,0.1,29266.0,29262.0,1.0]
[1609470562898,0.01508999,29267.0,29262.0,1.0]
[1609470563201,0.01508999,29267.0,29263.0,0.135]
[1609470564010,0.01508999,29267.0,29266.0,0.26683121]
[1609470566217,0.11508999,29267.0,29266.0,0.26683121]
[1609470566416,0.01508999,29267.0,29266.0,0.26683121]
[1609470566915,0.01508999,29267.0,29266.0,0.26473844]
[1609470568117,0.11508999,29267.0,29266.0,0.26473844]
[1609470569533,0.01508999,29267.0,29266.0,0.26473844]
[1609470570335,0.11508999,29267.0,29266.0,0.26473844]
[1609470570534,0.01508999,29267.0,29266.0,0.26473844]
[1609470572941,0.02131866,29267.0,29266.0,0.26473844]
[1609470573748,0.02131866,29267.0,29266.0,5.76387759]
[1609470573949,0.30603027,29268.0,29266.0,5.76387759]
[1609470574252,0.30603027,29268.0,29267.0,5.69355555]
[1609470574452,0.30603027,29268.0,29267.0,5.72702367]
[1609470574749,2.7e-07,29268.0,29267.0,6.05882669]
[1609470574987,2.7e-07,29268.0,29267.0,7.05882669]
[1609470575189,0.08350588,29276.0,29268.0,1.27438117]
[1609470575487,0.08350588,29276.0,29275.0,4.69390881]
[1609470575685,0.06126892,29276.0,29275.0,5.84324696]
[1609470575893,0.0008,29277.0,29276.0,2.261561]
[1609470576087,0.08028809,29279.0,29277.0,1.811561]
[1609470576286,0.08028809,29279.0,29278.0,0.69336402]
[1609470576493,0.0008,29280.0,29279.0,0.361561]
[1609470577723,0.0008,29280.0,29279.0,0.361372]
[1609470582782,0.0008,29280.0,29275.0,1.5118]
[1609470582988,0.0010025,29280.0,29276.0,0.946372]
[1609470583182,0.361372,29279.0,29276.0,0.585]
[1609470583789,0.361372,29277.0,29276.0,0.585]
[1609470584089,0.0002025,29279.0,29276.0,0.361372]
[1609470584282,0.0002025,29279.0,29275.0,0.5118]
[1609470584484,0.0010025,29280.0,29275.0,0.5118]
[1609470584683,0.0010025,29280.0,29276.0,0.175]
[1609470584888,0.361372,29279.0,29276.0,0.175]
[1609470585486,0.01077264,29278.0,29276.0,0.175]
[1609470585889,0.01077264,29278.0,29277.0,0.566372]
[1609470586484,0.01077264,29278.0,29277.0,1.50895015]
[1609470586887,0.01077264,29278.0,29277.0,0.566372]
[1609470587588,0.01077264,29278.0,29277.0,1.366372]
[1609470587789,0.01077264,29278.0,29277.0,0.566372]
[1609470588607,0.00577264,29278.0,29277.0,0.566372]
[1609470589709,0.00577264,29278.0,29277.0,0.561372]
[1609470590718,0.0010025,29280.0,29277.0,0.561372]
[1609470590917,0.0008,29280.0,29277.0,0.561372]
[1609470591121,0.0008,29280.0,29279.0,0.361372]
[1609470591991,0.0008,29280.0,29279.0,1.30395015]
[1609470592488,0.0008,29280.0,29279.0,1.33741827]
[1609470592786,0.0008,29280.0,29279.0,6.28741827]
[1609470593589,0.0008,29280.0,29279.0,5.34484012]
[1609470594018,0.0008,29280.0,29279.0,0.39484012]
[1609470594223,0.0008,29280.0,29279.0,0.361372]
[1609470594617,0.0008,29280.0,29279.0,1.961372]
[1609470595317,0.0008,29280.0,29279.0,2.531372]
[1609470596019,0.0008,29280.0,29279.0,0.931372]
[1609470597539,0.0008,29280.0,29279.0,1.631372]
[1609470598145,0.0008,29280.0,29279.0,0.931372]
[1609470598642,0.0008,29280.0,29279.0,1.681372]
[1609470598843,0.0008,29280.0,29279.0,0.931372]
[1609470599045,0.0008,29285.0,29279.0,0.931372]
[1609470599252,0.2419025,29284.0,29281.0,1.196377]
[1609470599448,0.0002,29284.0,29281.0,0.361377]
[1609470599647,0.0002,29284.0,29280.0,0.8]
[1609470599849,0.0002,29284.0,29281.0,0.361377]
[1609470600446,0.0002,29284.0,29282.0,0.29]
[1609470600647,0.0002,29284.0,29283.0,0.361377]
[1609470601353,0.361377,29285.0,29282.0,0.29]
[1609470601550,0.79823561,29289.0,29280.0,0.7]
[1609470601749,0.41879885,29288.0,29280.0,0.7]
[1609470601949,0.361377,29288.0,29280.0,0.7]
[1609470602255,0.06023266,29287.0,29280.0,0.7]
[1609470602448,0.06023266,29287.0,29278.0,2.3601]
[1609470602649,0.06023266,29287.0,29281.0,0.455]
[1609470602954,0.361377,29286.0,29278.0,2.3601]
[1609470603185,0.0002,29286.0,29279.0,0.361377]
[1609470603586,0.06045534,29286.0,29279.0,0.361377]
[1609470603790,0.06025646,29287.0,29280.0,0.405]
[1609470604186,0.06045646,29287.0,29280.0,0.405]
[1609470604886,0.06045646,29287.0,29281.0,0.361377]
[1609470605189,0.06045646,29287.0,29282.0,0.361337]
[1609470605588,0.06045646,29287.0,29282.0,0.326321]
[1609470607026,0.1,29286.0,29282.0,0.326321]
[1609470607226,0.0002,29286.0,29282.0,0.326321]
[1609470607428,0.57906089,29285.0,29278.0,2.3601]
[1609470607633,0.41875885,29284.0,29278.0,1.0]
[1609470607835,0.25742185,29283.0,29274.0,1.0]
[1609470608136,0.14,29281.0,29274.0,1.0]
[1609470608434,0.461337,29279.0,29274.0,1.0]
[1609470608636,0.05742185,29278.0,29264.0,0.6991]
[1609470608861,0.05742185,29278.0,29267.0,1.0]
[1609470609064,0.512,29273.0,29268.0,0.361337]
[1609470609265,0.68603,29273.0,29269.0,0.155]
[1609470609462,0.68603,29273.0,29270.0,0.361337]
[1609470609661,0.17403,29273.0,29270.0,0.361337]
[1609470609862,0.16946298,29273.0,29270.0,0.361337]
[1609470610361,0.1,29279.0,29270.0,0.361337]
[1609470610563,0.361427,29278.0,29269.0,0.155]
[1609470610765,0.512,29275.0,29270.0,0.531427]
[1609470611165,0.512,29275.0,29270.0,0.361427]
[1609470611565,0.1,29279.0,29270.0,0.361427]
[1609470612169,1.0002,29280.0,29271.0,1.29257815]
[1609470612367,0.6119,29279.0,29272.0,0.361427]
[1609470612584,0.6119,29279.0,29273.0,0.245]
[1609470612786,0.5119,29279.0,29274.0,0.361427]
[1609470612983,0.1,29278.0,29274.0,0.361427]
[1609470613488,0.361427,29277.0,29273.0,0.245]
[1609470613686,0.1,29278.0,29269.0,1.0]
[1609470613881,0.1,29278.0,29270.0,0.361427]
[1609470614289,0.57202,29279.0,29270.0,1.30400515]
[1609470614490,0.57202,29279.0,29271.0,1.28757815]
[1609470614689,0.6119,29279.0,29272.0,0.361427]
[1609470614885,0.6119,29279.0,29272.0,1.30400515]
[1609470615187,0.5119,29279.0,29272.0,1.30400515]
[1609470615386,0.6119,29279.0,29272.0,1.30400515]
[1609470615586,0.6119,29279.0,29273.0,0.395]
[1609470615883,0.6119,29279.0,29274.0,0.361427]
[1609470616282,0.5119,29279.0,29274.0,0.361427]
[1609470616688,0.1,29278.0,29274.0,0.361427]
[1609470617488,0.06688211,29277.0,29274.0,0.361427]
[1609470620414,0.06688211,29277.0,29270.0,1.0]
[1609470620619,0.06688211,29277.0,29271.0,0.586427]
[1609470620813,0.06688211,29277.0,29271.0,0.581427]
[1609470624398,0.05688211,29277.0,29271.0,0.581427]
[1609470624603,0.06674423,29276.0,29272.0,0.31]
[1609470624806,0.06674423,29276.0,29273.0,0.361427]
[1609470625001,0.06674451,29277.0,29273.0,0.361427]
[1609470625302,0.1,29278.0,29273.0,0.361427]
[1609470625701,0.06675492,29276.0,29273.0,0.361427]
[1609470625903,0.1,29275.0,29273.0,0.361427]
[1609470626507,0.5119,29279.0,29273.0,0.361427]
[1609470626705,0.56932185,29279.0,29273.0,0.361427]
[1609470626906,0.55151497,29279.0,29273.0,0.361427]
[1609470627308,0.0667594,29278.0,29273.0,0.361427]
[1609470627506,0.20709243,29278.0,29273.0,0.361427]
[1609470627927,0.30709243,29278.0,29273.0,0.361427]
[1609470628328,0.06675285,29277.0,29273.0,0.361427]
[1609470628532,0.06175285,29277.0,29276.0,0.361407]
[1609470629135,0.0666893,29278.0,29276.0,1.30398515]
[1609470629335,0.0666893,29278.0,29277.0,3.03745327]
[1609470630040,9.3e-06,29278.0,29277.0,3.54915327]
[1609470630242,0.78254628,29291.0,29277.0,4.51915327]
[1609470630243,0.0002,29284.0,29277.0,4.51915327]
[1609470630438,0.0002,29284.0,29281.0,0.361407]
[1609470630638,0.0002,29284.0,29283.0,4.311407]
[1609470630835,0.12469701,29287.0,29283.0,5.25398515]
[1609470631143,0.1248687,29289.0,29286.0,1.861407]
[1609470631335,0.0002,29288.0,29287.0,2.173007]
[1609470631536,0.0002,29288.0,29287.0,2.826767]
[1609470631732,0.0002,29288.0,29287.0,1.526767]
[1609470631931,0.06562697,29289.0,29288.0,0.361407]
[1609470632131,0.12543256,29290.0,29288.0,0.361407]
[1609470632331,0.12543256,29290.0,29289.0,0.35]
[1609470632536,0.12543256,29290.0,29289.0,0.711407]
[1609470632537,0.12523256,29290.0,29289.0,0.711407]
[1609470632733,0.0006,29290.0,29289.0,0.711407]
[1609470633140,0.0006,29290.0,29289.0,2.161407]
[1609470633358,0.1908099,29290.0,29289.0,0.691407]
[1609470633560,0.0006,29290.0,29289.0,0.45999901]
[1609470634160,0.06117496,29290.0,29289.0,0.45999901]
[1609470635060,2.86117496,29290.0,29289.0,1.45999901]
[1609470635266,3.38000381,29290.0,29289.0,1.22]
[1609470635463,0.48000381,29290.0,29289.0,1.0]
[1609470635661,0.11859681,29290.0,29289.0,1.0]
[1609470635866,0.06117496,29290.0,29289.0,0.986]
[1609470636059,0.1,29290.0,29284.0,1.0]
[1609470636263,0.1002,29290.0,29285.0,0.606306]
[1609470636664,0.16668081,29290.0,29286.0,0.28]
[1609470636857,0.16668081,29290.0,29287.0,0.361306]
[1609470637108,0.06647926,29289.0,29287.0,0.361306]
[1609470637308,0.1,29290.0,29286.0,0.28]
[1609470637512,0.06647414,29288.0,29285.0,1.0]
[1609470637809,0.1,29287.0,29286.0,0.361306]
[1609470639141,0.0002,29290.0,29286.0,0.361306]
[1609470639342,0.0002,29290.0,29285.0,1.0]
[1609470639538,0.05762185,29290.0,29285.0,1.0]
[1609470639746,0.12387727,29290.0,29285.0,1.0]
[1609470639941,0.06645542,29290.0,29286.0,0.361306]
[1609470640141,0.06665542,29290.0,29285.0,1.0]
[1609470640342,0.06145581,29289.0,29286.0,0.361306]
[1609470641143,0.1,29288.0,29286.0,0.361306]
[1609470641445,0.0002,29289.0,29286.0,0.361306]
[1609470641642,0.1002,29289.0,29285.0,1.0]
[1609470641847,0.1,29289.0,29285.0,1.0]
[1609470642142,0.1,29289.0,29286.0,0.361306]
[1609470642446,0.1,29289.0,29282.0,1.6543]
[1609470642673,0.0002,29290.0,29283.0,0.361306]
[1609470642870,0.14133264,29291.0,29283.0,1.51558227]
[1609470643070,0.06623046,29290.0,29285.0,0.361306]
[1609470643472,0.06623046,29290.0,29286.0,0.385]
[1609470643473,0.00414737,29287.0,29286.0,0.385]
[1609470643669,0.00414737,29287.0,29286.0,0.746306]
[1609470644072,0.00414737,29287.0,29286.0,0.361306]
[1609470645272,0.0002,29289.0,29286.0,0.361306]
[1609470645473,0.06643046,29290.0,29287.0,0.361306]
[1609470645672,0.0002,29290.0,29287.0,0.361306]
[1609470645980,1.5502,29290.0,29289.0,0.361306]
[1609470646171,2.15163864,29290.0,29285.0,1.5116]
[1609470646472,1.85655827,29290.0,29285.0,1.0]
[1609470646676,0.42753082,29289.0,29285.0,1.0]
[1609470646974,0.43,29288.0,29285.0,1.0]
[1609470647172,0.43,29288.0,29286.0,0.361306]
[1609470647373,0.1,29288.0,29286.0,0.361306]
[1609470647575,0.00414726,29286.0,29285.0,1.0]
[1609470647776,0.00414726,29286.0,29285.0,1.361306]
[1609470648176,0.00414726,29286.0,29285.0,0.361306]
[1609470649394,0.06555217,29290.0,29285.0,0.361306]
[1609470649592,0.06555217,29290.0,29282.0,1.6543]
[1609470649792,0.06555217,29290.0,29283.0,0.751306]
[1609470650000,0.41872785,29289.0,29283.0,0.39]
[1609470650300,0.361306,29287.0,29282.0,1.6543]
[1609470650599,0.1,29288.0,29282.0,1.6543]
[1609470650995,0.1,29288.0,29283.0,0.361306]
[1609470651197,0.1,29288.0,29282.0,0.6543]
[1609470651594,0.1,29288.0,29283.0,0.361306]
[1609470651895,0.1,29288.0,29282.0,0.6543]
[1609470652137,0.1,29288.0,29283.0,0.361306]
[1609470652333,0.1,29288.0,29284.0,1.0]
[1609470652937,0.1,29288.0,29285.0,0.3]
[1609470652938,0.06618656,29287.0,29285.0,0.3]
[1609470653133,0.06618656,29287.0,29284.0,1.0]
[1609470654167,0.1,29286.0,29284.0,1.0]
[1609470655766,0.361306,29285.0,29284.0,1.0]
[1609470656172,0.571276,29285.0,29284.0,1.0]
[1609470656372,0.571276,29285.0,29279.0,1.6461]
[1609470656767,0.571476,29285.0,29279.0,1.6461]
[1609470656969,0.21017,29285.0,29279.0,1.6461]
[1609470657377,0.1,29283.0,29279.0,1.6201]
[1609470657695,0.1,29283.0,29280.0,0.361306]
[1609470657993,0.15742185,29283.0,29279.0,1.6201]
[1609470658493,0.06624519,29282.0,29280.0,0.361306]
[1609470659892,0.06624519,29282.0,29280.0,0.356306]
[1609470665334,0.06624519,29282.0,29279.0,0.6461]
[1609470666134,0.20657783,29282.0,29279.0,0.6461]
[1609470666334,0.20657783,29282.0,29280.0,0.361355]
[1609470666538,0.20657783,29282.0,29279.0,0.6461]
[1609470666936,0.0662468,29281.0,29280.0,0.361355]
[1609470667902,0.06624316,29282.0,29280.0,0.361355]
[1609470668103,0.06624316,29282.0,29279.0,0.6461]
[1609470668406,0.06624316,29282.0,29280.0,0.361355]
[1609470669205,0.1,29281.0,29280.0,0.361355]
[1609470669405,0.16624366,29281.0,29280.0,0.361355]
[1609470669606,0.06624366,29281.0,29280.0,0.361355]
[1609470670005,0.06624138,29284.0,29280.0,0.361355]
[1609470670410,0.18177402,29285.0,29281.0,0.0038]
[1609470670710,0.361355,29284.0,29281.0,0.0038]
[1609470673547,0.63646717,29286.0,29282.0,1.30393315]
[1609470673851,0.63646717,29286.0,29285.0,4.311355]
[1609470673852,0.12466717,29286.0,29285.0,4.311355]
[1609470674050,0.71328342,29287.0,29285.0,5.25393315]
[1609470674253,0.71328342,29287.0,29286.0,5.25393315]
[1609470674450,0.71328342,29287.0,29286.0,6.11240127]
[1609470674851,0.58863466,29287.0,29286.0,6.11240127]
[1609470675249,0.58863466,29287.0,29286.0,7.11240127]
[1609470675450,0.58863466,29287.0,29286.0,7.21877127]
[1609470675656,0.48863466,29287.0,29286.0,7.21877127]
[1609470675855,0.0002,29290.0,29287.0,5.09257815]
[1609470676054,0.001,29291.0,29289.0,4.311355]
[1609470676250,0.001,29291.0,29290.0,6.69920609]
[1609470676681,0.0008,29291.0,29290.0,6.69920609]
[1609470677584,0.0008,29291.0,29290.0,6.69420609]
[1609470678585,0.0008,29291.0,29290.0,5.75162794]
[1609470678786,0.0008,29291.0,29290.0,6.68920609]
[1609470679588,0.0008,29291.0,29290.0,5.74662794]
[1609470680314,0.0008,29291.0,29290.0,5.33482312]
[1609470681120,0.0006,29298.0,29293.0,0.361355]
[1609470681121,0.2621,29295.0,29293.0,0.361355]
[1609470681319,0.0002,29295.0,29294.0,3.5594451]
[1609470681619,0.0002,29295.0,29294.0,3.722693]
[1609470681817,0.0002,29295.0,29294.0,0.90616112]
[1609470682125,0.0002,29295.0,29294.0,0.872693]
[1609470682289,0.0002,29295.0,29294.0,1.327693]
[1609470682490,0.0002,29295.0,29294.0,1.36116112]
[1609470682686,0.0002,29295.0,29294.0,2.76116112]
[1609470683584,0.0002,29295.0,29294.0,3.00210112]
[1609470684319,0.0002,29295.0,29294.0,3.35025322]
[1609470684518,0.0002,29295.0,29294.0,1.60210112]
[1609470684825,0.0002,29295.0,29294.0,1.327693]
[1609470685219,0.0002,29295.0,29294.0,1.36116112]
[1609470685524,0.0004,29297.0,29294.0,2.46116112]
[1609470685725,0.0004,29302.0,29295.0,4.466293]
[1609470685920,0.0004,29302.0,29296.0,0.361293]
[1609470686124,0.0004,29302.0,29298.0,0.5114]
[1609470686325,0.0004,29302.0,29299.0,0.361293]
[1609470686622,0.05742185,29301.0,29299.0,0.361293]
[1609470686927,0.05742185,29301.0,29298.0,0.5114]
[1609470686928,0.361293,29299.0,29298.0,0.5114]
[1609470687227,1.261293,29296.0,29295.0,1.5115]
[1609470687426,0.41871485,29296.0,29295.0,1.0]
[1609470687625,0.51871485,29296.0,29295.0,1.0]